fUSD/lending_fUSD_20240104
["ID","MTS","AMOUNT","RATE_DAILY","PERIOD"]
[310174481,1704388272958,-500.0,0.00034246,2]
[310174482,1704388272967,-4886.85,0.00034246,2]
[310174483,1704388272977,-2677.66,0.00034246,2]
[310174484,1704388272988,-500.0,0.00034246,2]
[310174485,1704388272997,-500.0,0.00034246,2]
[310174486,1704388273007,-500.0,0.00034246,2]
[310174487,1704388273019,-500.0,0.00034246,2]
[310174488,1704388273028,-500.0,0.00034246,2]
[310174489,1704388273037,-721.6,0.00034246,2]
[310174490,1704388273046,-3896.93,0.00034246,2]
[310174491,1704388273057,-500.0,0.00034246,2]
[310174492,1704388273066,-1547.88,0.00034246,2]
[310174493,1704388273077,-1482.83,0.00034246,2]
[310174494,1704388273086,-500.0,0.00034246,2]
[310174495,1704388273095,-2114.1,0.00034246,2]
[310174496,1704388273105,-946.51,0.00034246,2]
[310174497,1704388273114,-500.0,0.00034246,2]
[310174498,1704388273124,-5880.93,0.00034246,2]
[310174499,1704388273134,-3014.91,0.00034246,2]
[310174500,1704388273143,-500.0,0.00034246,2]
[310174501,1704388273152,-1887.8,0.00034246,2]
[310174502,1704388273162,-15735.01,0.00034246,2]
[310174503,1704388273171,-500.0,0.00034246,2]
[310174504,1704388273181,-500.0,0.00034246,2]
[310174505,1704388273190,-1633.79,0.00034246,2]
[310174506,1704388273199,-701.92,0.00034246,2]
[310174507,1704388273209,-500.0,0.00034246,2]
[310174508,1704388273218,-500.0,0.00034246,2]
[310174509,1704388273228,-671.3,0.00034246,2]
[310174510,1704388273239,-500.0,0.00034246,2]
[310174511,1704388273249,-794.02,0.00034246,2]
[310174512,1704388273259,-591.38,0.00034246,2]
[310174513,1704388273268,-500.0,0.00034246,2]
[310174514,1704388273278,-925.8,0.00034246,2]
[310174515,1704388273287,-5599.04,0.00034246,2]
[310174516,1704388273296,-500.0,0.00034246,2]
[310174517,1704388273305,-500.0,0.00034246,2]
[310174518,1704388273315,-945.74,0.00034246,2]
[310174519,1704388273325,-500.0,0.00034246,2]
[310174520,1704388273334,-500.0,0.00034246,2]
[310174521,1704388273343,-5986.81,0.00034246,2]
[310174522,1704388273353,-500.0,0.00034246,2]
[310174523,1704388273362,-500.0,0.00034246,2]
[310174524,1704388273371,-500.0,0.00034246,2]
[310174525,1704388273380,-500.0,0.00034246,2]
[310174526,1704388273389,-500.0,0.00034246,2]
[310174527,1704388273399,-500.0,0.00034246,2]
[310174528,1704388273411,-500.0,0.00034246,2]
[310174529,1704388273422,-1470.87,0.00034246,2]
[310174530,1704388273431,-602.55,0.00034246,2]
[310174531,1704388273440,-500.0,0.00034246,2]
[310174532,1704388273449,-500.0,0.00034246,2]
[310174533,1704388273459,-500.0,0.00034246,2]
[310174534,1704388273469,-500.0,0.00034246,2]
[310174535,1704388273478,-764.44,0.00034246,2]
[310174536,1704388273488,-500.0,0.00034246,2]
[310174537,1704388273498,-313.29664801,0.00034246,2]
[310174538,1704388273508,-743.47,0.00034246,2]
[310174539,1704388273518,-500.0,0.00034246,2]
[310174540,1704388273527,-500.0,0.00034246,2]
[310174541,1704388273537,-500.0,0.00034246,2]
[310174542,1704388273547,-1669.92,0.00034246,2]
[310174543,1704388273557,-500.0,0.00034246,2]
[310174544,1704388273567,-500.0,0.00034246,2]
[310174545,1704388273577,-1394.05,0.00034246,2]
[310174546,1704388273587,-571.07,0.00034246,2]
[310174547,1704388273597,-875.91,0.00034246,2]
[310174548,1704388273606,-500.0,0.00034246,2]
[310174549,1704388273615,-1267.35,0.00034246,2]
[310174550,1704388273625,-1580.14,0.00034246,2]
[310174551,1704388273634,-500.0,0.00034246,2]
[310174552,1704388273643,-500.0,0.00034246,2]
[310174553,1704388273653,-709.98,0.00034246,2]
[310174554,1704388273663,-500.0,0.00034246,2]
[310174555,1704388273674,-500.0,0.00034246,2]
[310174556,1704388273684,-1191.65,0.00034246,2]
[310174557,1704388273694,-1047.43,0.00034246,2]
[310174558,1704388273706,-2226.92,0.00034246,2]
[310174559,1704388273716,-810.46,0.00034246,2]
[310174560,1704388273726,-500.0,0.00034246,2]
[310174561,1704388273736,-500.0,0.00034246,2]
[310174562,1704388273746,-500.0,0.00034246,2]
[310174563,1704388273756,-500.0,0.00034246,2]
[310174564,1704388273766,-863.65,0.00034246,2]
[310174565,1704388273776,-903.39,0.00034246,2]
[310174566,1704388273786,-1968.05,0.00034246,2]
[310174567,1704388273796,-500.0,0.00034246,2]
[310174568,1704388273805,-1034.79,0.00034246,2]
[310174569,1704388273815,-854.18,0.00034246,2]
[310174570,1704388273824,-500.0,0.00034246,2]
[310174571,1704388273834,-500.0,0.00034246,2]
[310174572,1704388273843,-765.48,0.00034246,2]
[310174573,1704388273853,-10009.45,0.00034246,2]
[310174574,1704388273863,-500.0,0.00034246,2]
[310174575,1704388273873,-500.0,0.00034246,2]
[310174576,1704388273882,-9363.57,0.00034246,2]
[310174577,1704388273892,-2153.91,0.00034246,2]
[310174578,1704388273902,-500.0,0.00034246,2]
[310174579,1704388273912,-500.0,0.00034246,2]
[310174580,1704388273921,-3003.06,0.00034246,2]
[310174581,1704388273930,-738.74,0.00034246,2]
[310174582,1704388273939,-500.0,0.00034246,2]
[310174583,1704388273949,-1165.67,0.00034246,2]
[310174584,1704388273959,-713.89,0.00034246,2]
[310174585,1704388273968,-2572.02,0.00034246,2]
[310174586,1704388273978,-500.0,0.00034246,2]
[310174587,1704388273988,-773.97,0.00034246,2]
[310174588,1704388273997,-1215.87,0.00034246,2]
[310174589,1704388274007,-690.72,0.00034246,2]
[310174590,1704388274016,-500.0,0.00034246,2]
[310174591,1704388274026,-500.0,0.00034246,2]
[310174592,1704388274036,-500.0,0.00034246,2]
[310174593,1704388274045,-500.0,0.00034246,2]
[310174594,1704388274055,-2022.6,0.00034246,2]
[310174595,1704388274065,-500.0,0.00034246,2]
[310174596,1704388274075,-573.39,0.00034246,2]
[310174597,1704388274084,-696.7,0.00034246,2]
[310174598,1704388274094,-1226.56,0.00034246,2]
[310174599,1704388274103,-500.0,0.00034246,2]
[310174600,1704388274112,-2937.67,0.00034246,2]
[310174601,1704388274123,-260.20205148,0.00034246,2]
[310174602,1704388274132,-635.58,0.00034246,2]
[310174603,1704388274142,-545.79,0.00034246,2]
[310174604,1704388274153,-1426.17,0.00034246,2]
[310174605,1704388274162,-500.0,0.00034246,2]
[310174606,1704388274172,-500.0,0.00034246,2]
[310174607,1704388274182,-3513.29,0.00034246,2]
[310174608,1704388274192,-1647.62,0.00034246,2]
[310174609,1704388274202,-606.05,0.00034246,2]
[310174610,1704388274211,-541.67,0.00034246,2]
[310174611,1704388274221,-1244.46,0.00034246,2]
[310174612,1704388274231,-500.0,0.00034246,2]
[310174613,1704388274240,-500.0,0.00034246,2]
[310174614,1704388274249,-500.0,0.00034246,2]
[310174615,1704388274260,-500.0,0.00034246,2]
[310174616,1704388274270,-575.65,0.00034246,2]
[310174617,1704388274279,-1020.73,0.00034246,2]
[310174618,1704388274288,-2619.15,0.00034246,2]
[310174619,1704388274298,-556.35,0.00034246,2]
[310174620,1704388274374,-578.92,0.00034246,2]
[310174621,1704388274384,-1172.77,0.00034246,2]
[310174622,1704388274394,-682.18,0.00034246,2]
[310174623,1704388274403,-663.84,0.00034246,2]
[310174624,1704388274412,-1180.84,0.00034246,2]
[310174625,1704388274421,-151.0,0.00034246,7]
[310174626,1704388274431,-151.0,0.00034246,7]
[310174627,1704388274440,-4052.79502222,0.00034276,6]
[310174628,1704388274450,-1359.92350397,0.00034278,2]
[310174629,1704388274460,-236.18,0.00034286,2]
[310174630,1704388274470,-150.0,0.000344,23]
[310174631,1704388274479,-151.0,0.00034419,7]
[310174632,1704388274489,-1236.52578682,0.00034444,2]
[310174633,1704388274498,-236.18,0.0003446,2]
[310174634,1704388274507,-155.0,0.00034518,2]
[310174635,1704388274517,-33644.0068165,0.00034519,4]
[310174636,1704388274526,-500.0,0.00034519,2]
[310174637,1704388274535,-1999.03,0.00034519,2]
[310174638,1704388274545,-500.0,0.00034519,2]
[310174639,1704388274554,-1438.916417,0.0003452,2]
[310174640,1704388274563,-22714.986011,0.0003452,2]
[310174641,1704388274572,-500.0,0.0003452,2]
[310174642,1704388274581,-271.1056769,0.0003452,2]
[310174643,1704388274590,-500.0,0.0003452,2]
[310174644,1704388274598,-562.25,0.0003452,2]
[310174645,1704388274608,-547.21356147,0.0003452,2]
[310174646,1704388274617,-500.0,0.0003452,2]
[310174647,1704388274627,-383.30885488,0.0003452,2]
[310174648,1704388274636,-500.0,0.0003452,2]
[310174649,1704388274646,-535.400009,0.0003452,7]
[310174650,1704388274654,-500.0,0.0003452,2]
[310174651,1704388274664,-500.0,0.0003452,2]
[310174652,1704388274674,-500.0,0.0003452,2]
[310174653,1704388274684,-500.0,0.0003452,2]
[310174654,1704388274694,-500.0,0.0003452,2]
[310174655,1704388274704,-500.0,0.0003452,2]
[310174656,1704388274713,-562.96,0.0003452,2]
[310174657,1704388274723,-500.0,0.0003452,2]
[310174658,1704388274733,-500.0,0.0003452,2]
[310174659,1704388274743,-500.0,0.0003452,2]
[310174660,1704388274754,-566.17,0.0003452,2]
[310174661,1704388274764,-500.0,0.0003452,2]
[310174662,1704388274773,-591.18,0.0003452,2]
[310174663,1704388274783,-214.63269855,0.0003452,2]
[310174664,1704388274793,-500.0,0.0003452,2]
[310174665,1704388274802,-500.0,0.0003452,2]
[310174666,1704388274813,-500.0,0.0003452,2]
[310174667,1704388274824,-605.32,0.0003452,2]
[310174668,1704388274835,-500.0,0.0003452,2]
[310174669,1704388274845,-500.0,0.0003452,2]
[310174670,1704388274854,-256.25312488,0.0003452,2]
[310174671,1704388274863,-500.0,0.0003452,2]
[310174672,1704388274873,-594.07,0.0003452,2]
[310174673,1704388274882,-230.34460989,0.0003452,2]
[310174674,1704388274891,-500.0,0.0003452,2]
[310174675,1704388274901,-500.0,0.0003452,2]
[310174676,1704388274910,-500.0,0.0003452,2]
[310174677,1704388274920,-500.0,0.0003452,2]
[310174678,1704388274929,-500.0,0.0003452,2]
[310174679,1704388274938,-500.0,0.0003452,2]
[310174680,1704388274947,-500.0,0.0003452,2]
[310174681,1704388274956,-500.0,0.0003452,2]
[310174682,1704388274965,-500.0,0.0003452,2]
[310174683,1704388274974,-500.0,0.0003452,2]
[310174684,1704388274989,-500.0,0.0003452,2]
[310174685,1704388274998,-500.0,0.0003452,2]
[310174686,1704388275007,-500.0,0.0003452,2]
[310174687,1704388275017,-500.0,0.0003452,2]
[310174688,1704388275027,-629.7,0.0003452,2]
[310174689,1704388275036,-597.94704889,0.0003452,2]
[310174690,1704388275045,-500.0,0.0003452,2]
[310174691,1704388275056,-500.0,0.0003452,2]
[310174692,1704388275066,-500.0,0.0003452,2]
[310174693,1704388275076,-500.0,0.0003452,2]
[310174694,1704388275087,-500.0,0.0003452,2]
[310174695,1704388275097,-855.21,0.0003452,2]
[310174696,1704388275107,-500.0,0.0003452,2]
[310174697,1704388275117,-482.93,0.0003452,2]
[310174698,1704388275133,-500.0,0.0003452,2]
[310174699,1704388275142,-500.0,0.0003452,2]
[310174700,1704388275152,-569.62949261,0.0003452,2]
[310174701,1704388275162,-500.0,0.0003452,2]
[310174702,1704388275172,-500.0,0.0003452,2]
[310174703,1704388275183,-500.0,0.0003452,2]
[310174704,1704388275192,-500.0,0.0003452,2]
[310174705,1704388275202,-500.0,0.0003452,2]
[310174706,1704388275211,-500.0,0.0003452,2]
[310174707,1704388275221,-500.0,0.0003452,2]
[310174708,1704388275231,-500.0,0.0003452,2]
[310174709,1704388275241,-500.0,0.0003452,2]
[310174710,1704388275251,-500.0,0.0003452,2]
[310174711,1704388275261,-500.0,0.0003452,2]
[310174712,1704388275272,-439.98610679,0.0003452,2]
[310174713,1704388275282,-379.99555047,0.0003452,2]
[310174714,1704388275292,-500.0,0.0003452,2]
[310174715,1704388275302,-500.0,0.0003452,2]
[310174716,1704388275312,-500.0,0.0003452,2]
[310174717,1704388275322,-500.0,0.0003452,2]
[310174718,1704388275333,-500.0,0.0003452,2]
[310174719,1704388275345,-546.22,0.0003452,2]
[310174720,1704388275355,-773.8,0.0003452,2]
[310174721,1704388275365,-500.0,0.0003452,2]
[310174722,1704388275378,-500.0,0.0003452,2]
[310174723,1704388275387,-500.0,0.0003452,2]
[310174724,1704388275396,-500.0,0.0003452,2]
[310174725,1704388275405,-500.0,0.0003452,2]
[310174726,1704388275414,-500.0,0.0003452,2]
[310174727,1704388275423,-500.0,0.0003452,2]
[310174728,1704388275432,-205.6139161,0.0003452,2]
[310174729,1704388275441,-500.0,0.0003452,2]
[310174730,1704388275450,-595.10855612,0.0003452,2]
[310174731,1704388275459,-254.30624396,0.0003452,2]
[310174732,1704388275469,-529.76,0.0003452,2]
[310174733,1704388275478,-500.0,0.0003452,2]
[310174734,1704388275487,-500.0,0.0003452,2]
[310174735,1704388275497,-500.0,0.0003452,2]
[310174736,1704388275507,-500.0,0.0003452,2]
[310174737,1704388275516,-500.0,0.0003452,2]
[310174738,1704388275526,-500.0,0.0003452,2]
[310174739,1704388275535,-500.0,0.0003452,2]
[310174740,1704388275545,-500.0,0.0003452,2]
[310174741,1704388275553,-500.0,0.0003452,2]
[310174742,1704388275563,-150.0,0.0003452,2]
[310174743,1704388275572,-500.0,0.0003452,2]
[310174744,1704388275582,-500.0,0.0003452,2]
[310174745,1704388275591,-500.0,0.0003452,2]
[310174746,1704388275600,-500.0,0.0003452,2]
[310174747,1704388275609,-500.0,0.0003452,2]
[310174748,1704388275618,-500.0,0.0003452,2]
[310174749,1704388275629,-500.0,0.0003452,2]
[310174750,1704388275638,-528.72242305,0.0003452,2]
[310174751,1704388275647,-500.0,0.0003452,2]
[310174752,1704388275657,-367.25770788,0.0003452,2]
[310174753,1704388275666,-500.0,0.0003452,2]
[310174754,1704388275675,-500.0,0.0003452,2]
[310174755,1704388275685,-500.0,0.0003452,2]
[310174756,1704388275693,-500.0,0.0003452,2]
[310174757,1704388275702,-500.0,0.0003452,2]
[310174758,1704388275711,-500.0,0.0003452,2]
[310174759,1704388275721,-506.08,0.0003452,2]
[310174760,1704388275729,-500.0,0.0003452,2]
[310174761,1704388275739,-545.53,0.0003452,2]
[310174762,1704388275747,-729.35,0.0003452,2]
[310174763,1704388275756,-500.0,0.0003452,2]
[310174764,1704388275766,-500.0,0.0003452,2]
[310174765,1704388275775,-925.3,0.0003452,2]
[310174766,1704388275784,-500.0,0.0003452,2]
[310174767,1704388275793,-1635.82,0.0003452,2]
[310174768,1704388275802,-500.0,0.0003452,2]
[310174769,1704388275812,-500.0,0.0003452,2]
[310174770,1704388275821,-500.0,0.0003452,2]
[310174771,1704388275830,-3181.96,0.0003452,2]
[310174772,1704388275840,-500.0,0.0003452,2]
[310174773,1704388275849,-500.0,0.0003452,2]
[310174774,1704388275859,-1581.86,0.0003452,2]
[310174775,1704388275868,-500.0,0.0003452,2]
[310174776,1704388275879,-500.0,0.0003452,2]
[310174777,1704388275888,-2373.55,0.0003452,2]
[310174778,1704388275899,-1294.73,0.0003452,2]
[310174779,1704388275908,-512.34,0.0003452,2]
[310174780,1704388275918,-500.0,0.0003452,2]
[310174781,1704388275928,-5687.06,0.0003452,2]
[310174782,1704388275938,-2614.25,0.0003452,2]
[310174783,1704388275947,-909.88,0.0003452,2]
[310174784,1704388275956,-1395.9,0.0003452,2]
[310174785,1704388275965,-500.0,0.0003452,2]
[310174786,1704388275975,-500.0,0.0003452,2]
[310174787,1704388275984,-500.0,0.0003452,2]
[310174788,1704388275992,-500.0,0.0003452,2]
[310174789,1704388276001,-877.48,0.0003452,2]
[310174790,1704388276010,-2741.1,0.0003452,2]
[310174791,1704388276020,-1332.47,0.0003452,2]
[310174792,1704388276029,-2760.02,0.0003452,2]
[310174793,1704388276039,-2316.57846517,0.0003452,2]
[310174795,1704388276396,-162.69153483,0.0003452,2]
[310174796,1704388276406,-233.54140283,0.0003452,2]
[310174797,1704388276418,-266.45859717,0.0003452,2]
[310174798,1704388276427,-41.88440283,0.0003452,2]
[310174799,1704388276440,-2359.64559717,0.0003452,2]
[310174800,1704388276450,-1035.2,0.0003452,2]
[310174801,1704388276459,-500.0,0.0003452,2]
[310174802,1704388276469,-500.0,0.0003452,2]
[310174803,1704388276481,-7321.07,0.0003452,2]
[310174804,1704388276518,-1070.80226824,0.0003452,2]
[310174805,1704388276542,-456.08773176,0.0003452,2]
[310174806,1704388276551,-1435.67,0.0003452,2]
[310174807,1704388276561,-1575.16409822,0.0003452,2]
[310174808,1704388276573,-214.89590178,0.0003452,2]
[310174809,1704388276582,-500.0,0.0003452,2]
[310174810,1704388276592,-1452.18,0.0003452,2]
[310174811,1704388276602,-500.0,0.0003452,2]
[310174812,1704388276612,-500.0,0.0003452,2]
[310174813,1704388276621,-950.58,0.0003452,2]
[310174814,1704388276633,-500.0,0.0003452,2]
[310174815,1704388276643,-971.78600645,0.0003452,2]
[310174816,1704388276655,-211.16399355,0.0003452,2]
[310174817,1704388276664,-500.0,0.0003452,2]
[310174818,1704388276674,-73.73244899,0.0003452,2]
[310174819,1704388276686,-401.47892665,0.0003452,2]
[310174820,1704388276698,-1045.82126318,0.0003452,2]
[310174821,1704388276718,-500.0,0.0003315,2]
[310174822,1704388276728,-171.78736118,0.0003452,2]
[310174823,1704388276737,-159.48500761,0.0003452,2]
[310174824,1704388276750,-340.51499239,0.0003452,2]
[310174825,1704388276761,-86.63500561,0.0003452,2]
[310174826,1704388276773,-413.36499439,0.0003452,2]
[310174827,1704388276783,-1025.09,0.0003452,2]
[310174828,1704388276793,-64.36079835,0.0003452,2]
[310174829,1704388276805,-822.47920165,0.0003452,2]
[310174830,1704388276814,-500.0,0.0003452,2]
[310174831,1704388276825,-199.15034963,0.0003452,2]
[310174832,1704388276837,-300.84965037,0.0003452,2]
[310174833,1704388276847,-215.40074539,0.0003452,2]
[310174834,1704388276860,-284.59925461,0.0003452,2]
[310174835,1704388276869,-622.54,0.0003452,2]
[310174836,1704388276880,-502.63,0.0003452,2]
[310174837,1704388276890,-500.0,0.0003452,2]
[310174838,1704388276899,-3119.83385631,0.0003452,2]
[310174839,1704388276911,-768.77400001,0.0003452,2]
[310174840,1704388277512,-160.06048459,0.00028466,2]
[310174841,1704388277522,-397.561291,0.00032875,4]
[310174842,1704388277535,-594.91090339,0.00032875,4]
[310174843,1704388277547,-585.65050295,0.00032875,4]
[310174844,1704388277557,-409.20495899,0.00032876,2]
[310174845,1704388277574,-90.79504101,0.00032876,2]
[310174846,1704388277584,-187.94539147,0.00032876,2]
[310174847,1704388277596,-312.05460853,0.00032876,2]
[310174848,1704388277606,-552.0,0.0003315,2]
[310174849,1704388277616,-477.98,0.0003315,2]
[310174850,1704388277627,-500.0,0.00033424,2]
[310174851,1704388277637,-500.0,0.00033698,2]
[310174852,1704388277648,-500.0,0.00033972,2]
[310174853,1704388277659,-500.0,0.00034246,2]
[310174854,1704388277670,-998.24214368,0.0003452,2]
[310174855,1704388277680,-2677.66,0.0003452,2]
[310174856,1704388277689,-500.0,0.0003452,2]
[310174857,1704388277699,-500.0,0.0003452,2]
[310174858,1704388277709,-500.0,0.0003452,2]
[310174859,1704388277719,-500.0,0.0003452,2]
[310174860,1704388277729,-500.0,0.0003452,2]
[310174861,1704388277739,-721.6,0.0003452,2]
[310174862,1704388277749,-500.0,0.0003452,2]
[310174863,1704388277760,-3176.3281233,0.0003452,2]
[310174864,1704388277774,-720.6018767,0.0003452,2]
[310174865,1704388277784,-1547.88,0.0003452,2]
[310174866,1704388277794,-1482.83,0.0003452,2]
[310174867,1704388277804,-2114.1,0.0003452,2]
[310174868,1704388277814,-500.0,0.0003452,2]
[310174869,1704388277824,-520.5881233,0.0003452,2]
[310174870,1704388277849,-425.9218767,0.0003452,2]
[310174871,1704388277859,-500.0,0.0003452,2]
[310174872,1704388277869,-5880.93,0.0003452,2]
[310174873,1704388277879,-3014.91,0.0003452,2]
[310174874,1704388277889,-500.0,0.0003452,2]
[310174875,1704388277899,-1887.8,0.0003452,2]
[310174876,1704388277909,-15735.01,0.0003452,2]
[310174877,1704388277920,-500.0,0.0003452,2]
[310174878,1704388277931,-500.0,0.0003452,2]
[310174879,1704388277943,-1633.79,0.0003452,2]
[310174880,1704388277953,-701.92,0.0003452,2]
[310174881,1704388277965,-497.60933256,0.0003452,2]
[310174882,1704388277975,-500.0,0.0003452,2]
[310174883,1704388277984,-671.3,0.0003452,2]
[310174884,1704388277994,-500.0,0.0003452,2]
[310174885,1704388278003,-794.02,0.0003452,2]
[310174886,1704388278013,-591.38,0.0003452,2]
[310174887,1704388278022,-500.0,0.0003452,2]
[310174888,1704388278031,-925.8,0.0003452,2]
[310174889,1704388278041,-5599.04,0.0003452,2]
[310174890,1704388278050,-500.0,0.0003452,2]
[310174891,1704388278060,-500.0,0.0003452,2]
[310174892,1704388278069,-36.63703967,0.0003452,2]
[310174893,1704388278085,-479.06535196,0.0003452,2]
[310174894,1704388278097,-430.03760837,0.0003452,2]
[310174895,1704388278106,-169.24218371,0.0003452,2]
[310174908,1704388697248,591.10031511,0.000192,2]
[310174909,1704388759493,543.80323094,0.000192,7]
[310174910,1704388763326,271.01367823,0.000192,7]
[310174911,1704388775504,543.80323094,0.000192,7]
[310174912,1704388779356,271.01367823,0.000192,7]
[310174913,1704388791495,291.71233947,0.000192,7]
[310174914,1704388797329,271.01367823,0.000192,7]
[310174915,1704388797736,610.5307,0.00026294,14]
[310174916,1704388815329,271.01367823,0.000192,7]
[310174917,1704388833330,177.88826896,0.000192,7]
[310174918,1704389081862,-155.0,0.00026273,7]
[310174919,1704389081885,-315.0,0.00026273,2]
[310174920,1704389103260,253.31,0.00029319,10]
[310174934,1704389174872,-155.0,0.00026268,7]
[310174935,1704389174893,-418.66897481,0.00026269,2]
[310174936,1704389174915,-26.33102519,0.0002627,2]
[310175014,1704389434810,-2608.63551911,0.0002616,2]
[310175015,1704389434821,-418.66897481,0.00026161,2]
[310175016,1704389434831,-155.0,0.00026161,7]
[310175017,1704389434842,-1424.95097434,0.00026162,2]
[310175018,1704389434853,-242.36629056,0.00026165,2]
[310175019,1704389434863,-467.34439771,0.00026262,2]
[310175020,1704389434874,-150.0,0.00026499,2]
[310175021,1704389434886,-6406.14443356,0.000265,2]
[310175022,1704389434902,-1922.96638505,0.000265,2]
[310175023,1704389434914,-330.3158877,0.000265,2]
[310175024,1704389434926,-1340.57329369,0.000265,2]
[310175025,1704389434938,-242.36629043,0.00026571,2]
[310175026,1704389434947,-1009.39737189,0.00026571,2]
[310175027,1704389434972,-3200.22262811,0.00026571,2]
[310175028,1704389434981,-242.36629043,0.00026976,2]
[310175029,1704389434992,-250.0,0.00027,3]
[310175030,1704389435002,-379.23,0.00027,2]
[310175031,1704389435012,-150.99,0.00027,2]
[310175032,1704389435023,-2411.99122477,0.00027297,2]
[310175033,1704389435033,-2411.99122478,0.00027297,2]
[310175034,1704389435043,-999.99,0.00027297,2]
[310175035,1704389435053,-699.54,0.00027326,2]
[310175036,1704389435064,-242.36629043,0.00027382,2]
[310175037,1704389435074,-464.29,0.00027395,2]
[310175038,1704389435085,-11034.26992635,0.00027396,2]
[310175039,1704389435096,-6023.33,0.00027397,2]
[310175040,1704389435106,-405.1604312,0.00027397,2]
[310175041,1704389435120,-94.8295688,0.00027397,2]
[310175042,1704389435132,-242.36629043,0.00027788,2]
[310175043,1704389435142,-242.36629043,0.00028193,2]
[310175044,1704389435153,-211.9472098,0.00028465,2]
[310175045,1704389435163,-242.36629043,0.00028599,2]
[310175046,1704389435174,-300.0,0.00029,3]
[310175047,1704389435185,-242.36629043,0.00029004,2]
[310175048,1704389435195,-3084.69,0.00029124,2]
[310175049,1704389435208,-195.97,0.0002916,2]
[310175050,1704389435218,-200.0,0.00029188,2]
[310175051,1704389435228,-250.0,0.00029278,2]
[310175053,1704389435238,-500.0,0.0002928,3]
[310175055,1704389435249,-1852.42,0.00029362,2]
[310175056,1704389435260,-2000.0,0.00029377,2]
[310175057,1704389435271,-159.98453324,0.00029397,2]
[310175058,1704389435282,-406.65302617,0.00029398,2]
[310175059,1704389435292,-1028.54099078,0.00029399,2]
[310175060,1704389435305,-22871.45900922,0.00029399,2]
[310175061,1704389435316,-242.36629043,0.0002941,2]
[310175062,1704389435325,-600.0,0.00029425,2]
[310175063,1704389435335,-549.25,0.00029429,2]
[310175064,1704389435346,-152.21,0.00029461,2]
[310175065,1704389435356,-500.0,0.00029528,2]
[310175066,1704389435366,-3710.47,0.00029561,2]
[310175067,1704389435378,-699.54,0.0002959,2]
[310175068,1704389435389,-153.25,0.00029624,2]
[310175069,1704389435399,-242.36629043,0.00029816,2]
[310175070,1704389435410,-1000.0,0.0003,2]
[310175071,1704389435421,-444.68405555,0.0003,4]
[310175072,1704389435431,-242.36629043,0.00030221,2]
[310175073,1704389435441,-886.71471874,0.00030579,14]
[310175074,1704389435452,-415.27,0.00030579,2]
[310175075,1704389435463,-165.59,0.00030604,2]
[310175076,1704389435475,-242.36629043,0.00030627,2]
[310175077,1704389435486,-208.0,0.00030764,2]
[310175078,1704389435497,-200.92,0.00030808,2]
[310175079,1704389435507,-200.92,0.00030893,2]
[310175080,1704389435517,-200.92,0.00030977,2]
[310175081,1704389435529,-350.0,0.00031,3]
[310175082,1704389435540,-242.36629043,0.00031033,2]
[310175083,1704389435553,-200.92,0.00031062,2]
[310175084,1704389435564,-400.0,0.00031105,2]
[310175085,1704389435574,-200.92,0.00031146,2]